[Event "Titled Tuesday Blitz May 16 Early 2023"]
[White "Kamalidenova, Meruert"]
[Black "SereneSalmon"]
[WhiteFideId "13712802"]
[WhiteElo "2361"]
[BlackElo "2504"]
[Result "1-0"]
[Round "08"]
[TimeControl "180+2"]
[Date "2023.05.16"]
[WhiteClock "0:00:44"]
[BlackClock "0:00:00"]

1. e4 {[%clk 0:03:00]}  e6 {[%clk 0:03:00]} 2. d4 {[%clk 0:03:00]}  d5 {[%clk 0:03:01]} 3. Nd2 {[%clk 0:02:59]}  c5 {[%clk 0:03:01]} 4. exd5 {[%clk 0:02:58]}  Qxd5 {[%clk 0:03:02]} 5. Ngf3 {[%clk 0:02:58]}  cxd4 {[%clk 0:03:02]} 6. Bc4 {[%clk 0:02:56]}  Qd7 {[%clk 0:03:03]} 7. O-O {[%clk 0:02:53]}  Nc6 {[%clk 0:03:03]} 8. Nb3 {[%clk 0:02:54]}  Nf6 {[%clk 0:03:02]} 9. Nbxd4 {[%clk 0:02:53]}  Nxd4 {[%clk 0:03:02]} 10. Nxd4 {[%clk 0:02:54]}  a6 {[%clk 0:03:03]} 11. c3 {[%clk 0:02:54]}  Qc7 {[%clk 0:03:00]} 12. Bd3 {[%clk 0:02:51]}  Be7 {[%clk 0:03:00]} 13. Qf3 {[%clk 0:02:50]}  O-O {[%clk 0:02:53]} 14. Re1 {[%clk 0:02:50]}  Rd8 {[%clk 0:02:51]} 15. Bf4 {[%clk 0:02:48]}  Bd6 {[%clk 0:02:51]} 16. Bxd6 {[%clk 0:02:48]}  Rxd6 {[%clk 0:02:45]} 17. Rad1 {[%clk 0:02:45]}  Bd7 {[%clk 0:02:44]} 18. h3 {[%clk 0:02:40]}  Be8 {[%clk 0:02:42]} 19. Re5 {[%clk 0:02:27]}  Rd5 {[%clk 0:02:31]} 20. Rxd5 {[%clk 0:02:24]}  Nxd5 {[%clk 0:02:28]} 21. Re1 {[%clk 0:02:21]}  Nf6 {[%clk 0:02:21]} 22. a4 {[%clk 0:02:16]}  Rc8 {[%clk 0:02:15]} 23. Ra1 {[%clk 0:02:10]}  Qb6 {[%clk 0:02:11]} 24. Qe2 {[%clk 0:02:08]}  Nd5 {[%clk 0:02:00]} 25. a5 {[%clk 0:02:02]}  Qc7 {[%clk 0:01:52]} 26. Qe4 {[%clk 0:01:54]}  Nf6 {[%clk 0:01:52]} 27. Qf3 {[%clk 0:01:51]}  Bc6 {[%clk 0:01:41]} 28. Nxc6 {[%clk 0:01:51]}  Qxc6 {[%clk 0:01:42]} 29. Qe2 {[%clk 0:01:46]}  Kf8 {[%clk 0:01:38]} 30. Ra3 {[%clk 0:01:46]}  Qd5 {[%clk 0:01:29]} 31. Ra4 {[%clk 0:01:42]}  h6 {[%clk 0:01:22]} 32. Rb4 {[%clk 0:01:40]}  Qxa5 {[%clk 0:01:20]} 33. Rxb7 {[%clk 0:01:40]}  Rd8 {[%clk 0:01:09]} 34. Bc2 {[%clk 0:01:17]}  Qa1+ {[%clk 0:01:01]} 35. Kh2 {[%clk 0:01:17]}  Qc1 {[%clk 0:01:01]} 36. Bd3 {[%clk 0:01:03]}  Qf4+ {[%clk 0:00:42]} 37. g3 {[%clk 0:01:02]}  Qc1 {[%clk 0:00:40]} 38. Kg2 {[%clk 0:00:57]}  a5 {[%clk 0:00:38]} 39. Ra7 {[%clk 0:00:53]}  Rb8 {[%clk 0:00:35]} 40. Qe5 {[%clk 0:00:47]}  Qxb2 {[%clk 0:00:00]} 41. Qc7 {[%clk 0:00:44]} 1-0


[Site "https://www.chess.com"]

[Event "Titled Tuesday Blitz May 16 Early 2023"]
[White "Santos Flores, Alberto"]
[Black "Martinez Ramirez, Lennis"]
[WhiteFideId "3601234"]
[BlackFideId "3509079"]
[WhiteElo "2235"]
[BlackElo "2410"]
[Result "1/2-1/2"]
[Round "08"]
[TimeControl "180+2"]
[Date "2023.05.16"]
[WhiteClock "0:01:00"]
[BlackClock "0:00:48"]

1. e4 {[%clk 0:03:00]}  c5 {[%clk 0:02:59]} 2. Nf3 {[%clk 0:03:00]}  Nc6 {[%clk 0:02:59]} 3. Nc3 {[%clk 0:03:00]}  Nf6 {[%clk 0:02:58]} 4. d4 {[%clk 0:02:58]}  cxd4 {[%clk 0:02:59]} 5. Nxd4 {[%clk 0:02:58]}  e5 {[%clk 0:03:00]} 6. Ndb5 {[%clk 0:02:59]}  d6 {[%clk 0:03:00]} 7. Bg5 {[%clk 0:02:59]}  a6 {[%clk 0:03:01]} 8. Na3 {[%clk 0:03:00]}  b5 {[%clk 0:03:01]} 9. Bxf6 {[%clk 0:03:00]}  gxf6 {[%clk 0:03:01]} 10. Nd5 {[%clk 0:03:01]}  Bg7 {[%clk 0:03:02]} 11. c3 {[%clk 0:03:01]}  Ne7 {[%clk 0:02:52]} 12. Nxe7 {[%clk 0:03:01]}  Qxe7 {[%clk 0:02:52]} 13. Nc2 {[%clk 0:03:02]}  Bb7 {[%clk 0:02:48]} 14. Qg4 {[%clk 0:02:56]}  Bh6 {[%clk 0:02:40]} 15. Be2 {[%clk 0:02:48]}  Qe6 {[%clk 0:02:39]} 16. Qh5 {[%clk 0:02:23]}  Bxe4 {[%clk 0:02:35]} 17. Qxh6 {[%clk 0:02:07]}  Bxc2 {[%clk 0:02:33]} 18. O-O {[%clk 0:02:08]}  Rg8 {[%clk 0:02:14]} 19. Bf3 {[%clk 0:01:47]}  d5 {[%clk 0:02:09]} 20. Qd2 {[%clk 0:01:42]}  Be4 {[%clk 0:02:08]} 21. Bxe4 {[%clk 0:01:40]}  dxe4 {[%clk 0:02:09]} 22. a4 {[%clk 0:01:38]}  Rxg2+ {[%clk 0:02:04]} 23. Kxg2 {[%clk 0:01:25]}  Qg4+ {[%clk 0:02:03]} 24. Kh1 {[%clk 0:01:26]}  Qf3+ {[%clk 0:02:03]} 25. Kg1 {[%clk 0:01:26]}  Ke7 {[%clk 0:02:03]} 26. Rfd1 {[%clk 0:01:04]}  Rg8+ {[%clk 0:01:55]} 27. Kf1 {[%clk 0:01:04]}  Qh3+ {[%clk 0:01:55]} 28. Ke2 {[%clk 0:01:02]}  Qf3+ {[%clk 0:01:31]} 29. Kf1 {[%clk 0:01:01]}  Kf8 {[%clk 0:00:49]} 30. Qh6+ {[%clk 0:01:00]}  Ke7 {[%clk 0:00:48]} 31. Qd2 {[%clk 0:01:00]} 1/2-1/2


[Site "https://www.chess.com"]

[Event "Titled Tuesday Blitz May 16 Early 2023"]
[White "Martic, Ivan"]
[Black "Mamedov, Edgar"]
[WhiteFideId "929301"]
[BlackFideId "13739980"]
[WhiteElo "2360"]
[BlackElo "2317"]
[Result "1-0"]
[Round "08"]
[TimeControl "180+2"]
[Date "2023.05.16"]
[WhiteClock "0:00:50"]
[BlackClock "0:00:13"]

1. c4 {[%clk 0:02:59]}  c6 {[%clk 0:02:59]} 2. d4 {[%clk 0:02:58]}  d5 {[%clk 0:03:00]} 3. cxd5 {[%clk 0:02:58]}  cxd5 {[%clk 0:03:01]} 4. Nc3 {[%clk 0:02:58]}  Nf6 {[%clk 0:03:00]} 5. Bf4 {[%clk 0:02:58]}  Nc6 {[%clk 0:02:58]} 6. e3 {[%clk 0:02:58]}  a6 {[%clk 0:02:58]} 7. Bd3 {[%clk 0:02:56]}  Bg4 {[%clk 0:02:58]} 8. Nge2 {[%clk 0:02:55]}  e6 {[%clk 0:02:58]} 9. h3 {[%clk 0:02:55]}  Bh5 {[%clk 0:02:56]} 10. O-O {[%clk 0:02:50]}  Bd6 {[%clk 0:02:56]} 11. Bxd6 {[%clk 0:02:46]}  Qxd6 {[%clk 0:02:57]} 12. Qb3 {[%clk 0:02:44]}  Ra7 {[%clk 0:02:54]} 13. Rac1 {[%clk 0:02:33]}  O-O {[%clk 0:02:54]} 14. Nf4 {[%clk 0:02:31]}  Bg6 {[%clk 0:02:53]} 15. Nxg6 {[%clk 0:02:31]}  hxg6 {[%clk 0:02:53]} 16. Na4 {[%clk 0:02:27]}  Nd7 {[%clk 0:02:51]} 17. Nc5 {[%clk 0:02:25]}  Nxc5 {[%clk 0:02:51]} 18. Rxc5 {[%clk 0:02:25]}  e5 {[%clk 0:02:49]} 19. Qb6 {[%clk 0:02:25]}  Qd7 {[%clk 0:02:11]} 20. dxe5 {[%clk 0:02:17]}  Raa8 {[%clk 0:02:11]} 21. f4 {[%clk 0:01:56]}  Rad8 {[%clk 0:02:10]} 22. Rfc1 {[%clk 0:01:51]}  d4 {[%clk 0:02:09]} 23. e4 {[%clk 0:01:47]}  Qe7 {[%clk 0:02:09]} 24. Bxa6 {[%clk 0:01:42]}  bxa6 {[%clk 0:02:08]} 25. Qxc6 {[%clk 0:01:32]}  d3 {[%clk 0:01:57]} 26. Rd5 {[%clk 0:01:32]}  Qb4 {[%clk 0:01:55]} 27. Qc4 {[%clk 0:01:14]}  Qxb2 {[%clk 0:01:45]} 28. Rd1 {[%clk 0:01:06]}  d2 {[%clk 0:01:07]} 29. R1xd2 {[%clk 0:00:58]}  Qxd2 {[%clk 0:01:03]} 30. Rxd2 {[%clk 0:00:59]}  Rxd2 {[%clk 0:01:03]} 31. e6 {[%clk 0:00:59]}  fxe6 {[%clk 0:01:02]} 32. Qxe6+ {[%clk 0:01:00]}  Kh7 {[%clk 0:01:02]} 33. f5 {[%clk 0:00:52]}  gxf5 {[%clk 0:00:58]} 34. exf5 {[%clk 0:00:53]}  Rf6 {[%clk 0:00:56]} 35. Qe4 {[%clk 0:00:53]}  Rxa2 {[%clk 0:00:53]} 36. g4 {[%clk 0:00:52]}  Kg8 {[%clk 0:00:13]} 37. Qd5+ {[%clk 0:00:50]} 1-0


[Site "https://www.chess.com"]

[Event "Titled Tuesday Blitz May 16 Early 2023"]
[White "Herrera Ortiz, Miguel"]
[Black "Mahalakshmi, M"]
[WhiteFideId "5100550"]
[BlackFideId "5001080"]
[WhiteElo "2618"]
[BlackElo "2176"]
[Result "1-0"]
[Round "08"]
[TimeControl "180+2"]
[Date "2023.05.16"]
[WhiteClock "0:00:11"]
[BlackClock "0:00:02"]

1. e4 {[%clk 0:02:57]}  c5 {[%clk 0:02:58]} 2. Nf3 {[%clk 0:02:57]}  e6 {[%clk 0:02:54]} 3. d4 {[%clk 0:02:57]}  cxd4 {[%clk 0:02:54]} 4. Nxd4 {[%clk 0:02:57]}  Nc6 {[%clk 0:02:52]} 5. Nb5 {[%clk 0:02:57]}  a6 {[%clk 0:02:50]} 6. Nd6+ {[%clk 0:02:56]}  Bxd6 {[%clk 0:02:50]} 7. Qxd6 {[%clk 0:02:57]}  Qe7 {[%clk 0:02:50]} 8. Bf4 {[%clk 0:02:56]}  e5 {[%clk 0:02:36]} 9. Qxe7+ {[%clk 0:02:52]}  Kxe7 {[%clk 0:02:32]} 10. Be3 {[%clk 0:02:48]}  d6 {[%clk 0:02:32]} 11. Nc3 {[%clk 0:02:46]}  Be6 {[%clk 0:02:32]} 12. O-O-O {[%clk 0:02:31]}  b5 {[%clk 0:02:21]} 13. a4 {[%clk 0:02:24]}  b4 {[%clk 0:02:17]} 14. Nd5+ {[%clk 0:02:24]}  Bxd5 {[%clk 0:02:02]} 15. exd5 {[%clk 0:02:25]}  Na5 {[%clk 0:02:01]} 16. Bd2 {[%clk 0:02:19]}  Rb8 {[%clk 0:01:49]} 17. Bxa6 {[%clk 0:02:15]}  Nf6 {[%clk 0:01:50]} 18. Bg5 {[%clk 0:02:09]}  Rb6 {[%clk 0:01:38]} 19. Bb5 {[%clk 0:02:07]}  Rc8 {[%clk 0:01:36]} 20. Kb1 {[%clk 0:02:04]}  Rc5 {[%clk 0:01:28]} 21. Be3 {[%clk 0:02:02]}  Rcxb5 {[%clk 0:01:27]} 22. axb5 {[%clk 0:02:01]}  Rxb5 {[%clk 0:01:27]} 23. Rhe1 {[%clk 0:01:51]}  Nxd5 {[%clk 0:01:20]} 24. f4 {[%clk 0:01:43]}  f6 {[%clk 0:01:13]} 25. fxe5 {[%clk 0:01:40]}  fxe5 {[%clk 0:01:13]} 26. Bg5+ {[%clk 0:01:39]}  Ke6 {[%clk 0:01:13]} 27. Rf1 {[%clk 0:01:39]}  Nc4 {[%clk 0:00:58]} 28. Rf8 {[%clk 0:01:37]}  b3 {[%clk 0:00:40]} 29. c3 {[%clk 0:01:25]}  Nce3 {[%clk 0:00:31]} 30. Bxe3 {[%clk 0:01:01]}  Nxe3 {[%clk 0:00:32]} 31. Rd3 {[%clk 0:01:00]}  Nc4 {[%clk 0:00:23]} 32. Rc8 {[%clk 0:00:52]}  d5 {[%clk 0:00:23]} 33. Re8+ {[%clk 0:00:50]}  Kf7 {[%clk 0:00:20]} 34. Rd8 {[%clk 0:00:47]}  e4 {[%clk 0:00:19]} 35. R3xd5 {[%clk 0:00:40]}  Rxd5 {[%clk 0:00:17]} 36. Rxd5 {[%clk 0:00:40]}  e3 {[%clk 0:00:17]} 37. Rd1 {[%clk 0:00:39]}  Ke6 {[%clk 0:00:17]} 38. Rd4 {[%clk 0:00:31]}  Ke5 {[%clk 0:00:15]} 39. Rd7 {[%clk 0:00:22]}  Ke4 {[%clk 0:00:15]} 40. Kc1 {[%clk 0:00:20]}  e2 {[%clk 0:00:13]} 41. Re7+ {[%clk 0:00:19]}  Kd3 {[%clk 0:00:13]} 42. Rd7+ {[%clk 0:00:17]}  Ke3 {[%clk 0:00:13]} 43. Re7+ {[%clk 0:00:14]}  Kf2 {[%clk 0:00:14]} 44. Rf7+ {[%clk 0:00:14]}  Kg1 {[%clk 0:00:14]} 45. Re7 {[%clk 0:00:14]}  Kf2 {[%clk 0:00:14]} 46. Rf7+ {[%clk 0:00:14]}  Kxg2 {[%clk 0:00:14]} 47. Rxg7+ {[%clk 0:00:13]}  Kf1 {[%clk 0:00:14]} 48. Rf7+ {[%clk 0:00:13]}  Kg1 {[%clk 0:00:15]} 49. Rg7+ {[%clk 0:00:13]}  Kxh2 {[%clk 0:00:12]} 50. Re7 {[%clk 0:00:13]}  Kg3 {[%clk 0:00:10]} 51. Rxe2 {[%clk 0:00:12]}  h5 {[%clk 0:00:10]} 52. Re4 {[%clk 0:00:12]}  Nd6 {[%clk 0:00:08]} 53. Re5 {[%clk 0:00:11]}  h4 {[%clk 0:00:08]} 54. Kd2 {[%clk 0:00:09]}  h3 {[%clk 0:00:08]} 55. Rg5+ {[%clk 0:00:09]}  Kf2 {[%clk 0:00:08]} 56. Rh5 {[%clk 0:00:08]}  Kg2 {[%clk 0:00:09]} 57. Kd3 {[%clk 0:00:08]}  h2 {[%clk 0:00:09]} 58. c4 {[%clk 0:00:08]}  h1=Q {[%clk 0:00:09]} 59. Rxh1 {[%clk 0:00:07]}  Kxh1 {[%clk 0:00:10]} 60. c5 {[%clk 0:00:08]}  Nb7 {[%clk 0:00:09]} 61. Kc4 {[%clk 0:00:08]}  Na5+ {[%clk 0:00:09]} 62. Kb5 {[%clk 0:00:08]}  Nb7 {[%clk 0:00:09]} 63. c6 {[%clk 0:00:08]}  Nd6+ {[%clk 0:00:09]} 64. Kb4 {[%clk 0:00:08]}  Kg2 {[%clk 0:00:09]} 65. Kxb3 {[%clk 0:00:08]}  Kf3 {[%clk 0:00:10]} 66. Kb4 {[%clk 0:00:09]}  Ke4 {[%clk 0:00:10]} 67. Kc5 {[%clk 0:00:10]}  Nc8 {[%clk 0:00:11]} 68. b4 {[%clk 0:00:09]}  Ke5 {[%clk 0:00:11]} 69. b5 {[%clk 0:00:10]}  Ke6 {[%clk 0:00:12]} 70. b6 {[%clk 0:00:11]}  Ke7 {[%clk 0:00:02]} 71. b7 {[%clk 0:00:11]} 1-0


[Site "https://www.chess.com"]

[Event "Titled Tuesday Blitz May 16 Early 2023"]
[White "Iskusnyh, Sergei"]
[Black "Panda Sambit"]
[WhiteFideId "4120027"]
[BlackFideId "25091794"]
[WhiteElo "2492"]
[BlackElo "2272"]
[Result "1-0"]
[Round "08"]
[TimeControl "180+2"]
[Date "2023.05.16"]
[WhiteClock "0:00:31"]
[BlackClock "0:00:00"]

1. d4 {[%clk 0:02:28]}  d5 {[%clk 0:02:56]} 2. c4 {[%clk 0:02:28]}  e6 {[%clk 0:02:57]} 3. Nf3 {[%clk 0:02:28]}  a6 {[%clk 0:02:57]} 4. Nbd2 {[%clk 0:02:27]}  dxc4 {[%clk 0:02:54]} 5. Nxc4 {[%clk 0:02:27]}  b5 {[%clk 0:02:55]} 6. Nce5 {[%clk 0:02:27]}  Bb7 {[%clk 0:02:55]} 7. g3 {[%clk 0:02:27]}  c5 {[%clk 0:02:54]} 8. Bg2 {[%clk 0:02:27]}  cxd4 {[%clk 0:02:52]} 9. Nxf7 {[%clk 0:02:24]}  Kxf7 {[%clk 0:02:18]} 10. Ne5+ {[%clk 0:02:23]}  Ke8 {[%clk 0:01:58]} 11. Bxb7 {[%clk 0:02:22]}  Ra7 {[%clk 0:01:51]} 12. Bg2 {[%clk 0:02:13]}  Bb4+ {[%clk 0:01:34]} 13. Bd2 {[%clk 0:02:12]}  Bd6 {[%clk 0:01:11]} 14. Nd3 {[%clk 0:02:04]}  Nf6 {[%clk 0:01:07]} 15. O-O {[%clk 0:02:04]}  Kf7 {[%clk 0:01:00]} 16. e3 {[%clk 0:02:00]}  dxe3 {[%clk 0:00:51]} 17. Bxe3 {[%clk 0:02:00]}  Rd7 {[%clk 0:00:52]} 18. Qe2 {[%clk 0:01:54]}  Re8 {[%clk 0:00:50]} 19. Rad1 {[%clk 0:01:52]}  Kg8 {[%clk 0:00:47]} 20. Rfe1 {[%clk 0:01:11]}  Qe7 {[%clk 0:00:40]} 21. Nf4 {[%clk 0:01:02]}  Rdd8 {[%clk 0:00:30]} 22. Qc2 {[%clk 0:00:55]}  Nbd7 {[%clk 0:00:21]} 23. Qc6 {[%clk 0:00:52]}  Ne5 {[%clk 0:00:10]} 24. Qxa6 {[%clk 0:00:49]}  b4 {[%clk 0:00:10]} 25. Nd3 {[%clk 0:00:37]}  Neg4 {[%clk 0:00:08]} 26. Bf4 {[%clk 0:00:32]}  Bxf4 {[%clk 0:00:04]} 27. Nxf4 {[%clk 0:00:31]}  Qc5 {[%clk 0:00:00]} 28. Qe2 {[%clk 0:00:31]} 1-0


[Site "https://www.chess.com"]

[Event "Titled Tuesday Blitz May 16 Early 2023"]
[White "Koepke, Christian"]
[Black "Gheorghiu, Calin"]
[WhiteFideId "4655737"]
[BlackFideId "1200305"]
[WhiteElo "2204"]
[BlackElo "2223"]
[Result "1/2-1/2"]
[Round "08"]
[TimeControl "180+2"]
[Date "2023.05.16"]
[WhiteClock "0:00:15"]
[BlackClock "0:00:11"]

1. d4 {[%clk 0:03:00]}  Nf6 {[%clk 0:02:59]} 2. e3 {[%clk 0:03:00]}  d5 {[%clk 0:02:57]} 3. Bd3 {[%clk 0:02:59]}  c5 {[%clk 0:02:57]} 4. c3 {[%clk 0:02:59]}  Nc6 {[%clk 0:02:56]} 5. f4 {[%clk 0:02:59]}  g6 {[%clk 0:02:54]} 6. Nf3 {[%clk 0:02:59]}  Bg7 {[%clk 0:02:54]} 7. Ne5 {[%clk 0:02:57]}  O-O {[%clk 0:02:53]} 8. O-O {[%clk 0:02:56]}  Bf5 {[%clk 0:02:47]} 9. Qe2 {[%clk 0:02:51]}  Rc8 {[%clk 0:02:42]} 10. b3 {[%clk 0:02:49]}  a6 {[%clk 0:02:31]} 11. Bb2 {[%clk 0:02:48]}  b5 {[%clk 0:02:18]} 12. Bxf5 {[%clk 0:02:21]}  gxf5 {[%clk 0:02:17]} 13. dxc5 {[%clk 0:02:20]}  Ne4 {[%clk 0:02:15]} 14. Nxc6 {[%clk 0:02:09]}  Rxc6 {[%clk 0:02:15]} 15. b4 {[%clk 0:02:09]}  Qc7 {[%clk 0:01:41]} 16. a4 {[%clk 0:02:06]}  bxa4 {[%clk 0:01:35]} 17. Rxa4 {[%clk 0:02:02]}  Rb8 {[%clk 0:01:35]} 18. Rxa6 {[%clk 0:01:54]}  Rxa6 {[%clk 0:01:33]} 19. Qxa6 {[%clk 0:01:55]}  Nxc5 {[%clk 0:01:27]} 20. bxc5 {[%clk 0:01:47]}  Rxb2 {[%clk 0:01:27]} 21. Qa8+ {[%clk 0:01:45]}  Rb8 {[%clk 0:01:23]} 22. Qxd5 {[%clk 0:01:43]}  e6 {[%clk 0:01:24]} 23. Qd6 {[%clk 0:01:38]}  Qa7 {[%clk 0:01:11]} 24. Nd2 {[%clk 0:01:14]}  Bf8 {[%clk 0:01:09]} 25. Qe5 {[%clk 0:01:14]}  Bxc5 {[%clk 0:01:01]} 26. Rf3 {[%clk 0:01:13]}  Kf8 {[%clk 0:00:46]} 27. h3 {[%clk 0:00:45]}  Ke7 {[%clk 0:00:45]} 28. Kh2 {[%clk 0:00:44]}  Rg8 {[%clk 0:00:33]} 29. Nb3 {[%clk 0:00:32]}  Bd6 {[%clk 0:00:30]} 30. Qa5 {[%clk 0:00:32]}  Qb7 {[%clk 0:00:25]} 31. Nd4 {[%clk 0:00:28]}  Qb2 {[%clk 0:00:20]} 32. Qa7+ {[%clk 0:00:27]}  Kf6 {[%clk 0:00:19]} 33. Rg3 {[%clk 0:00:23]}  Rxg3 {[%clk 0:00:17]} 34. Kxg3 {[%clk 0:00:24]}  Qxc3 {[%clk 0:00:16]} 35. Nf3 {[%clk 0:00:24]}  Bc5 {[%clk 0:00:15]} 36. Qb8 {[%clk 0:00:19]}  Qxe3 {[%clk 0:00:15]} 37. Qd8+ {[%clk 0:00:15]}  Kg7 {[%clk 0:00:11]} 38. Qg5+ {[%clk 0:00:15]}  Kf8 {[%clk 0:00:11]} 39. Qd8+ {[%clk 0:00:15]}  Kg7 {[%clk 0:00:11]} 40. Qg5+ {[%clk 0:00:15]}  Kf8 {[%clk 0:00:11]} 41. Qd8+ {[%clk 0:00:15]}  Kg7 {[%clk 0:00:11]} 1/2-1/2


[Site "https://www.chess.com"]

[Event "Titled Tuesday Blitz May 16 Early 2023"]
[White "Bogaudinov, Rushan"]
[Black "Ibadov, Dashgyn"]
[WhiteFideId "4129288"]
[BlackFideId "24107514"]
[WhiteElo "1941"]
[BlackElo "2208"]
[Result "0-1"]
[Round "08"]
[TimeControl "180+2"]
[Date "2023.05.16"]
[WhiteClock "0:00:00"]
[BlackClock "0:00:10"]

1. e4 {[%clk 0:03:00]}  e5 {[%clk 0:02:59]} 2. Nc3 {[%clk 0:02:59]}  Nf6 {[%clk 0:02:59]} 3. g3 {[%clk 0:02:59]}  d5 {[%clk 0:02:57]} 4. exd5 {[%clk 0:02:59]}  c6 {[%clk 0:02:58]} 5. dxc6 {[%clk 0:02:53]}  Nxc6 {[%clk 0:02:59]} 6. Bg2 {[%clk 0:02:53]}  Bg4 {[%clk 0:03:00]} 7. Nge2 {[%clk 0:02:50]}  Nd4 {[%clk 0:02:56]} 8. O-O {[%clk 0:02:30]}  Bb4 {[%clk 0:02:38]} 9. f3 {[%clk 0:02:22]}  Be6 {[%clk 0:02:32]} 10. d3 {[%clk 0:02:05]}  O-O {[%clk 0:02:20]} 11. Kh1 {[%clk 0:02:04]}  Rc8 {[%clk 0:02:18]} 12. Bg5 {[%clk 0:01:55]}  h6 {[%clk 0:02:09]} 13. Bxf6 {[%clk 0:01:53]}  Qxf6 {[%clk 0:02:10]} 14. Ne4 {[%clk 0:01:52]}  Qe7 {[%clk 0:02:10]} 15. c3 {[%clk 0:01:48]}  Nxe2 {[%clk 0:02:10]} 16. Qxe2 {[%clk 0:01:48]}  Ba5 {[%clk 0:02:11]} 17. f4 {[%clk 0:01:37]}  f5 {[%clk 0:02:05]} 18. Nd2 {[%clk 0:01:36]}  exf4 {[%clk 0:01:36]} 19. Rae1 {[%clk 0:01:28]}  Rce8 {[%clk 0:01:36]} 20. Qxe6+ {[%clk 0:01:16]}  Qxe6 {[%clk 0:01:35]} 21. Rxe6 {[%clk 0:01:17]}  Rxe6 {[%clk 0:01:33]} 22. Bd5 {[%clk 0:01:17]}  Re8 {[%clk 0:01:30]} 23. Re1 {[%clk 0:01:16]}  Kf7 {[%clk 0:01:30]} 24. Rxe6 {[%clk 0:01:16]}  Rxe6 {[%clk 0:01:30]} 25. gxf4 {[%clk 0:01:15]}  Bc7 {[%clk 0:01:25]} 26. Nf3 {[%clk 0:01:07]}  Kf6 {[%clk 0:01:21]} 27. Bxe6 {[%clk 0:01:07]}  Kxe6 {[%clk 0:01:22]} 28. Nd4+ {[%clk 0:01:07]}  Kf6 {[%clk 0:01:16]} 29. Ne2 {[%clk 0:01:06]}  g5 {[%clk 0:01:12]} 30. Kg2 {[%clk 0:01:00]}  g4 {[%clk 0:01:08]} 31. d4 {[%clk 0:00:45]}  h5 {[%clk 0:01:07]} 32. c4 {[%clk 0:00:37]}  Ke6 {[%clk 0:00:58]} 33. b4 {[%clk 0:00:33]}  b5 {[%clk 0:00:51]} 34. cxb5 {[%clk 0:00:31]}  Kd5 {[%clk 0:00:50]} 35. a4 {[%clk 0:00:25]}  Kc4 {[%clk 0:00:45]} 36. Ng3 {[%clk 0:00:21]}  Kxb4 {[%clk 0:00:20]} 37. Nxf5 {[%clk 0:00:15]}  Kxa4 {[%clk 0:00:20]} 38. Ng7 {[%clk 0:00:12]}  Kxb5 {[%clk 0:00:17]} 39. Nxh5 {[%clk 0:00:11]}  a5 {[%clk 0:00:18]} 40. Kf2 {[%clk 0:00:07]}  a4 {[%clk 0:00:18]} 41. Nf6 {[%clk 0:00:06]}  Kc4 {[%clk 0:00:17]} 42. Ne4 {[%clk 0:00:05]}  a3 {[%clk 0:00:15]} 43. Nd2+ {[%clk 0:00:05]}  Kd3 {[%clk 0:00:12]} 44. Nb3 {[%clk 0:00:05]}  Bxf4 {[%clk 0:00:11]} 45. d5 {[%clk 0:00:02]}  Kc3 {[%clk 0:00:10]} 46. Na1 {[%clk 0:00:02]}  Kb2 {[%clk 0:00:10]} 47. Ke2 {[%clk 0:00:02]}  Kxa1 {[%clk 0:00:10]} 48. Kd3 {[%clk 0:00:02]}  Kb2 {[%clk 0:00:10]} 49. Ke4 {[%clk 0:00:02]}  Bxh2 {[%clk 0:00:10]} 50. Kf5 {[%clk 0:00:03]}  a2 {[%clk 0:00:10]} 51. Kxg4 {[%clk 0:00:00]}  a1=Q {[%clk 0:00:10]} 0-1


[Site "https://www.chess.com"]

[Event "Titled Tuesday Blitz May 16 Early 2023"]
[White "Fan_Of_Chucky"]
[Black "Potkin, Vladimir"]
[BlackFideId "4131061"]
[WhiteElo "2384"]
[BlackElo "2474"]
[Result "1-0"]
[Round "08"]
[TimeControl "180+2"]
[Date "2023.05.16"]
[WhiteClock "0:00:40"]
[BlackClock "0:00:17"]

1. d4 {[%clk 0:03:00]}  Nf6 {[%clk 0:02:57]} 2. c4 {[%clk 0:02:59]}  g6 {[%clk 0:02:54]} 3. Nc3 {[%clk 0:02:59]}  d5 {[%clk 0:02:54]} 4. Nf3 {[%clk 0:02:59]}  Bg7 {[%clk 0:02:53]} 5. h4 {[%clk 0:02:59]}  c6 {[%clk 0:02:52]} 6. Bg5 {[%clk 0:02:56]}  dxc4 {[%clk 0:02:49]} 7. e4 {[%clk 0:02:39]}  b5 {[%clk 0:02:48]} 8. e5 {[%clk 0:02:31]}  Nd5 {[%clk 0:02:48]} 9. h5 {[%clk 0:02:29]}  Be6 {[%clk 0:02:31]} 10. h6 {[%clk 0:02:20]}  Bf8 {[%clk 0:02:31]} 11. Ne4 {[%clk 0:02:19]}  f6 {[%clk 0:02:20]} 12. Bd2 {[%clk 0:02:08]}  Nd7 {[%clk 0:02:17]} 13. Be2 {[%clk 0:02:01]}  Qc7 {[%clk 0:02:05]} 14. a4 {[%clk 0:01:57]}  a6 {[%clk 0:02:00]} 15. O-O {[%clk 0:01:47]}  Bf5 {[%clk 0:01:57]} 16. Nc3 {[%clk 0:01:40]}  Nxc3 {[%clk 0:01:47]} 17. bxc3 {[%clk 0:01:38]}  e6 {[%clk 0:01:38]} 18. axb5 {[%clk 0:01:35]}  cxb5 {[%clk 0:01:37]} 19. exf6 {[%clk 0:01:36]}  Nxf6 {[%clk 0:01:34]} 20. Ne5 {[%clk 0:01:36]}  Bd6 {[%clk 0:01:33]} 21. Bf3 {[%clk 0:01:34]}  Nd5 {[%clk 0:01:25]} 22. Bxd5 {[%clk 0:01:28]}  exd5 {[%clk 0:01:24]} 23. Qf3 {[%clk 0:01:29]}  Be4 {[%clk 0:01:03]} 24. Qf6 {[%clk 0:01:16]}  Rf8 {[%clk 0:01:03]} 25. Qe6+ {[%clk 0:01:16]}  Qe7 {[%clk 0:01:04]} 26. Rxa6 {[%clk 0:01:17]}  Qxe6 {[%clk 0:00:20]} 27. Rxa8+ {[%clk 0:01:17]}  Ke7 {[%clk 0:00:21]} 28. Bg5+ {[%clk 0:01:18]}  Rf6 {[%clk 0:00:21]} 29. Ra7+ {[%clk 0:01:12]}  Ke8 {[%clk 0:00:20]} 30. Ra8+ {[%clk 0:01:11]}  Ke7 {[%clk 0:00:21]} 31. Ra7+ {[%clk 0:01:10]}  Kf8 {[%clk 0:00:21]} 32. Bxf6 {[%clk 0:01:04]}  Qxf6 {[%clk 0:00:21]} 33. Nd7+ {[%clk 0:01:04]}  Ke7 {[%clk 0:00:21]} 34. Nxf6+ {[%clk 0:01:05]}  Kxf6 {[%clk 0:00:22]} 35. Rb7 {[%clk 0:01:01]}  b4 {[%clk 0:00:21]} 36. cxb4 {[%clk 0:00:50]}  c3 {[%clk 0:00:21]} 37. Rb6 {[%clk 0:00:48]}  Ke7 {[%clk 0:00:20]} 38. Rc6 {[%clk 0:00:46]}  Bxb4 {[%clk 0:00:19]} 39. Rc1 {[%clk 0:00:41]}  c2 {[%clk 0:00:19]} 40. R6xc2 {[%clk 0:00:41]}  Bxc2 {[%clk 0:00:20]} 41. Rxc2 {[%clk 0:00:42]}  Kf6 {[%clk 0:00:19]} 42. Rc7 {[%clk 0:00:39]}  g5 {[%clk 0:00:18]} 43. Rxh7 {[%clk 0:00:39]}  Kg6 {[%clk 0:00:17]} 44. Rd7 {[%clk 0:00:40]} 1-0


[Site "https://www.chess.com"]